bitfinex/quotes_BTCUSD_20230110
["timestamp","ask_amount","ask_price","bid_price","bid_amount"]
[1673384595670,2.84706199,17478.0,17477.0,0.00424367]
[1673384595916,2.84716628,17478.0,17477.0,0.00424367]
[1673384597945,2.84706199,17478.0,17477.0,0.16714367]
[1673384599004,2.84716628,17478.0,17477.0,0.16714367]
[1673384599255,2.84716628,17478.0,17477.0,0.11264367]
[1673384600295,2.3330724,17478.0,17477.0,0.11264367]
[1673384600544,2.84716628,17478.0,17477.0,0.11264367]
[1673384604648,2.3330724,17478.0,17477.0,0.11264367]
[1673384606701,2.91027626,17478.0,17477.0,0.11264367]
[1673384608009,2.91027626,17478.0,17477.0,0.10764367]
[1673384609882,2.91027626,17478.0,17477.0,0.1636]
[1673384610672,2.3330724,17478.0,17477.0,0.1636]
[1673384611472,2.91027626,17478.0,17477.0,0.1636]
[1673384611720,2.3330724,17478.0,17477.0,0.1636]
[1673384612778,2.91027626,17478.0,17477.0,0.1636]
[1673384616945,2.91017197,17478.0,17477.0,0.16258349]
[1673384617204,2.91017197,17478.0,17477.0,0.16247239]
[1673384620596,2.91017197,17478.0,17477.0,0.16258349]
[1673384620809,2.91017197,17478.0,17476.0,0.17194056]
[1673384621059,0.81449728,17477.0,17476.0,0.17194056]
[1673384621317,1.44436,17477.0,17476.0,0.17194056]
[1673384621575,1.64446429,17477.0,17476.0,0.17194056]
[1673384621838,1.89446429,17477.0,17476.0,0.17294056]
[1673384622110,1.69446429,17477.0,17476.0,0.17294056]
[1673384622618,1.69446429,17477.0,17476.0,0.17194056]
[1673384622900,1.82946429,17477.0,17476.0,0.17294056]
[1673384624073,1.82936,17477.0,17476.0,0.17294056]
[1673384624292,1.82936,17477.0,17476.0,0.17506746]
[1673384624293,2.34382069,17477.0,17476.0,0.17506746]
[1673384624755,2.34382069,17477.0,17476.0,0.17294056]
[1673384625277,2.34382069,17477.0,17476.0,0.17506746]
[1673384625556,2.34392498,17477.0,17476.0,0.17294056]
[1673384625820,2.34382069,17477.0,17476.0,0.17294056]
[1673384626317,2.34382069,17477.0,17476.0,0.1730469]
[1673384627315,2.34382069,17477.0,17476.0,0.17294056]
[1673384628613,2.04382069,17477.0,17476.0,0.17294056]
[1673384628863,2.34382069,17477.0,17476.0,0.17294056]
[1673384629129,2.04382069,17477.0,17476.0,0.17294056]
[1673384630556,2.34382069,17477.0,17476.0,0.17294056]
[1673384631530,2.34392498,17477.0,17476.0,0.17294056]
[1673384631800,2.34392498,17477.0,17476.0,0.00914056]
[1673384632044,1.82946429,17477.0,17476.0,0.00914056]
[1673384635965,1.93478025,17477.0,17476.0,0.00914056]
[1673384636213,1.82936,17477.0,17476.0,0.00924689]
[1673384636437,1.82936,17477.0,17476.0,0.00914056]
[1673384638241,2.02936,17477.0,17476.0,0.00914056]
[1673384638497,2.60656386,17477.0,17476.0,0.00914056]
[1673384639253,2.60656386,17477.0,17476.0,0.00905973]
[1673384639718,2.60666815,17477.0,17476.0,0.00905973]
[1673384640499,2.40666815,17477.0,17476.0,0.00905973]
[1673384640726,1.82936,17477.0,17476.0,0.00905973]
[1673384641440,1.82936,17477.0,17476.0,0.02715976]
[1673384641656,1.82936,17477.0,17476.0,0.00905973]
[1673384641929,1.82946429,17477.0,17476.0,0.00905973]
[1673384642428,1.82936,17477.0,17476.0,0.00905973]
[1673384642689,2.60656386,17477.0,17476.0,0.00905973]
[1673384642969,2.60666815,17477.0,17476.0,0.00905973]
[1673384643264,2.97481708,17477.0,17476.0,0.00905973]
[1673384643522,2.60666815,17477.0,17476.0,0.00905973]
[1673384644056,2.40666815,17477.0,17476.0,0.00905973]
[1673384644851,2.40656386,17477.0,17476.0,0.00905973]
[1673384645361,2.40666815,17477.0,17476.0,0.00905973]
[1673384645640,2.60666815,17477.0,17476.0,0.00905973]
[1673384645965,2.97481708,17477.0,17476.0,0.00905973]
[1673384646215,3.01885987,17477.0,17476.0,0.00905973]
[1673384646477,3.07857553,17477.0,17476.0,0.00905973]
[1673384648077,3.24237553,17477.0,17476.0,0.00905973]
[1673384652279,2.8742266,17477.0,17476.0,0.00905973]
[1673384652563,2.34975448,17477.0,17476.0,0.00905973]
[1673384652793,2.81623607,17477.0,17476.0,0.00905973]
[1673384653045,2.8742266,17477.0,17476.0,0.00905973]
[1673384653300,2.2059652,17477.0,17476.0,0.00905973]
[1673384653565,2.2059652,17477.0,17476.0,0.14014973]
[1673384653566,2.04327618,17477.0,17476.0,0.14014973]
[1673384653855,2.04327618,17477.0,17476.0,0.22865627]
[1673384654346,2.04327618,17477.0,17476.0,0.58680327]
[1673384654347,1.47109618,17477.0,17476.0,0.58680327]
[1673384654615,1.47109618,17477.0,17476.0,0.22865627]
[1673384655375,0.95718,17477.0,17476.0,0.22843885]
[1673384655380,0.95718,17477.0,17476.0,0.00905973]
[1673384655631,1.47109618,17477.0,17476.0,0.00905973]
[1673384656408,0.95718,17477.0,17476.0,0.36720673]
[1673384657159,0.95718,17477.0,17476.0,0.00905973]
[1673384657408,0.951743,17477.0,17476.0,0.08423985]
[1673384657664,1.46576347,17477.0,17476.0,0.08423985]
[1673384657923,1.46565918,17477.0,17476.0,0.08423985]
[1673384658683,0.951743,17477.0,17476.0,0.08423985]
[1673384658934,0.951743,17477.0,17476.0,0.44238685]
[1673384660925,0.951743,17477.0,17476.0,0.08423985]
[1673384661180,0.951743,17477.0,17476.0,0.00905973]
[1673384661430,1.46576347,17477.0,17476.0,0.00905973]
[1673384661709,2.33794347,17477.0,17476.0,0.00905973]
[1673384663293,2.03783918,17477.0,17476.0,0.00905973]
[1673384663551,2.33783918,17477.0,17476.0,0.00905973]
[1673384664867,2.33794347,17477.0,17476.0,0.00905973]
[1673384665421,2.33783918,17477.0,17476.0,0.00905973]
[1673384665636,2.33781661,17477.0,17476.0,0.00905973]
[1673384666158,2.3379209,17477.0,17476.0,0.00905973]
[1673384668473,2.33781661,17477.0,17476.0,0.00905973]
[1673384669236,2.3379209,17477.0,17476.0,0.00905973]
[1673384669733,2.33781661,17477.0,17476.0,0.00905973]
[1673384670996,2.023923,17477.0,17476.0,0.00905973]
[1673384671261,2.062707,17477.0,17476.0,0.00905973]
[1673384671515,2.64091683,17477.0,17476.0,0.00905973]
[1673384672780,2.06281129,17477.0,17476.0,0.00905973]
[1673384673034,2.062707,17477.0,17476.0,0.00905973]
[1673384673302,2.023923,17477.0,17476.0,0.00905973]
[1673384674527,2.062707,17477.0,17476.0,0.00905973]
[1673384675519,2.023923,17477.0,17476.0,0.00905973]
[1673384676261,2.062707,17477.0,17476.0,0.00905973]
[1673384676516,1.862707,17477.0,17476.0,0.00905973]
[1673384676773,1.82402729,17477.0,17476.0,0.00905973]
[1673384677040,2.02402729,17477.0,17476.0,0.00905973]
[1673384677802,2.06281129,17477.0,17476.0,0.00905973]
[1673384678303,1.86281129,17477.0,17476.0,0.00905973]
[1673384678812,1.82402729,17477.0,17476.0,0.00905973]
[1673384679064,1.823923,17477.0,17476.0,0.0089992]
[1673384679552,2.33781874,17477.0,17476.0,0.0089992]
[1673384680500,2.53781874,17477.0,17476.0,0.0089992]
[1673384680959,2.37660274,17477.0,17476.0,0.0089992]
[1673384681216,2.33781874,17477.0,17476.0,0.0089992]
[1673384683255,2.53781874,17477.0,17476.0,0.0089992]
[1673384683524,2.57660274,17477.0,17476.0,0.0089992]
[1673384683785,2.06281129,17477.0,17476.0,0.0089992]
[1673384684004,2.02402729,17477.0,17476.0,0.0089992]
[1673384685258,2.60213283,17477.0,17476.0,0.0089992]
[1673384685513,2.64091683,17477.0,17476.0,0.0089992]
[1673384685767,3.16538895,17477.0,17476.0,0.0089992]
[1673384686023,2.70063249,17477.0,17476.0,0.0089992]
[1673384686547,2.4617442,17477.0,17476.0,0.0089992]
[1673384686798,2.08363866,17477.0,17476.0,0.0089992]
[1673384687857,2.12242266,17477.0,17476.0,0.0089992]
[1673384688660,2.08363866,17477.0,17476.0,0.0089992]
[1673384689450,2.7005282,17477.0,17476.0,0.0089992]
[1673384689999,2.70063249,17477.0,17476.0,0.0089992]
[1673384691624,2.66184849,17477.0,17476.0,0.0089992]
[1673384691881,2.70063249,17477.0,17476.0,0.0089992]
[1673384692922,2.66184849,17477.0,17476.0,0.0089992]
[1673384693193,2.70063249,17477.0,17476.0,0.0089992]
[1673384698442,2.12252695,17477.0,17476.0,0.0089992]
[1673384698700,2.28562695,17477.0,17476.0,0.0089992]
[1673384699734,2.81009907,17477.0,17476.0,0.0089992]
[1673384701033,2.8680896,17477.0,17476.0,0.0089992]
[1673384702540,2.34361748,17477.0,17476.0,0.0089992]
[1673384703044,2.8680896,17477.0,17476.0,0.00891898]
[1673384703563,3.28571066,17477.0,17476.0,0.00891898]
[1673384704322,2.8680896,17477.0,17476.0,0.00891898]
[1673384706940,2.34361748,17477.0,17476.0,0.00891898]
[1673384710463,2.8680896,17477.0,17476.0,0.00891898]
[1673384710678,3.0405896,17477.0,17476.0,0.00891898]
[1673384711112,3.35401661,17477.0,17476.0,0.00891898]
[1673384711538,3.93307882,17477.0,17476.0,0.00891898]
[1673384713376,3.61965181,17477.0,17476.0,0.00891898]
[1673384713593,3.93307882,17477.0,17476.0,0.00891898]
[1673384713825,4.77637334,17477.0,17476.0,0.00891898]
[1673384714276,4.94017334,17477.0,17476.0,9.8e-07]
[1673384714496,0.2,17476.0,17475.0,0.00814056]
[1673384714715,2.67141545,17476.0,17475.0,0.00814056]
[1673384714947,3.55349397,17476.0,17475.0,0.00814056]
[1673384715182,3.92491151,17476.0,17472.0,0.00605927]
[1673384715411,0.74133993,17473.0,17472.0,0.00605927]
[1673384715667,3.89384005,17473.0,17472.0,0.00605927]
[1673384715897,4.43731025,17473.0,17472.0,0.00605927]
[1673384716082,3.48707412,17473.0,17472.0,0.00605927]
[1673384716566,3.87107412,17473.0,17472.0,0.00605927]
[1673384716904,4.39554624,17473.0,17472.0,0.00605927]
[1673384718936,3.87107412,17473.0,17472.0,0.00605927]
[1673384719194,3.8181106,17473.0,17472.0,0.00605927]
[1673384719459,3.29363848,17473.0,17472.0,0.00605927]
[1673384720235,3.59667149,17473.0,17472.0,0.00605927]
[1673384720733,3.29363848,17473.0,17472.0,0.00605927]
[1673384721994,4.39565053,17473.0,17472.0,0.00605927]
[1673384722500,3.8181106,17473.0,17472.0,0.00605927]
[1673384723288,3.29363848,17473.0,17472.0,0.00605927]
[1673384724067,3.8181106,17473.0,17472.0,0.00605927]
[1673384724360,4.21092565,17473.0,17472.0,0.00605927]
[1673384724556,4.34692565,17473.0,17472.0,0.00605927]
[1673384724818,4.21092565,17473.0,17472.0,0.00605927]
[1673384725087,4.35442565,17473.0,17472.0,0.00605927]
[1673384726372,4.93196558,17473.0,17472.0,0.00605927]
[1673384727638,4.79696558,17473.0,17472.0,0.00605927]
[1673384728660,4.93296558,17473.0,17472.0,0.00605927]
[1673384729185,5.09676558,17473.0,17472.0,0.00605927]
[1673384729983,4.96076558,17473.0,17472.0,0.00605927]
[1673384730235,5.09676558,17473.0,17472.0,0.00605927]
[1673384730510,4.96076558,17473.0,17472.0,0.00605927]
[1673384731058,5.09676558,17473.0,17472.0,0.00605927]
[1673384732172,5.09534413,17473.0,17472.0,0.00605927]
[1673384732434,5.09534755,17473.0,17472.0,0.00605927]
[1673384732983,5.10941642,17473.0,17472.0,0.00605927]
[1673384733254,4.53329452,17473.0,17472.0,0.00605927]
[1673384734288,4.39729452,17473.0,17472.0,0.00605927]
[1673384734547,4.53329452,17473.0,17472.0,0.00605927]
[1673384736154,4.00647947,17473.0,17472.0,0.00605927]
[1673384737598,0.2,17472.0,17471.0,0.00829355]
[1673384737875,2.22190808,17472.0,17471.0,0.00829355]
[1673384738129,3.46337061,17472.0,17471.0,0.00829355]
[1673384738913,3.71337061,17472.0,17471.0,0.00829355]
[1673384739171,4.29276167,17472.0,17471.0,0.00829355]
[1673384739696,3.85289571,17472.0,17471.0,0.00829355]
[1673384740006,4.2927652,17472.0,17471.0,0.00829355]
[1673384740263,4.4287652,17472.0,17471.0,0.00829355]
[1673384740512,3.84937414,17472.0,17471.0,0.00829355]
[1673384740762,3.65538361,17472.0,17471.0,0.00829355]
[1673384741046,3.84937414,17472.0,17471.0,0.00829355]
[1673384744457,3.27350465,17472.0,17471.0,0.00829355]
[1673384744734,3.8263573,17472.0,17471.0,0.00829355]
[1673384745006,3.8263573,17472.0,17471.0,5.5e-07]
[1673384745766,3.6903573,17472.0,17471.0,5.5e-07]
[1673384746027,3.8273573,17472.0,17471.0,5.5e-07]
[1673384747274,3.27450465,17472.0,17471.0,5.5e-07]
[1673384750480,3.58793166,17472.0,17471.0,5.5e-07]
[1673384750741,3.85715778,17472.0,17471.0,5.5e-07]
[1673384750996,3.85715778,17472.0,17466.0,0.01149096]
[1673384750997,0.2,17471.0,17466.0,0.01149096]
[1673384751259,0.51249648,17467.0,17466.0,0.01149096]
[1673384751516,2.69857842,17467.0,17466.0,0.01149096]
[1673384751779,2.73736242,17467.0,17466.0,0.01149096]
[1673384752049,3.01865448,17467.0,17466.0,0.01149096]
[1673384753099,2.97987048,17467.0,17466.0,0.01149096]
[1673384753346,3.15465448,17467.0,17466.0,0.01149096]
[1673384754624,3.62747024,17467.0,17466.0,0.01149096]
[1673384755476,3.11512376,17467.0,17466.0,0.01149096]
[1673384757935,3.6270162,17467.0,17466.0,0.01149096]
[1673384758942,3.11512376,17467.0,17466.0,0.01149096]
[1673384759249,3.16275598,17467.0,17466.0,0.01149096]
[1673384759482,3.16283201,17467.0,17466.0,0.01149096]
[1673384759979,3.16282418,17467.0,17466.0,0.01149096]
[1673384760493,2.65091229,17467.0,17466.0,0.01149096]
[1673384761270,3.16284616,17467.0,17466.0,0.01149096]
[1673384764150,2.96284616,17467.0,17466.0,0.01149096]
[1673384764396,2.91545787,17467.0,17466.0,0.01149096]
[1673384764644,2.103524,17467.0,17466.0,0.88513221]
[1673384764895,2.87164333,17467.0,17466.0,0.91607921]
[1673384765149,2.87164333,17467.0,17466.0,0.70328519]
[1673384765400,2.29913533,17467.0,17466.0,0.70328519]
[1673384765664,0.84743009,17467.0,17466.0,1.19438519]
[1673384765925,0.81275058,17467.0,17466.0,1.55353219]
[1673384766172,0.81275058,17467.0,17466.0,2.07711395]
[1673384766693,0.55670535,17467.0,17466.0,2.07711395]
[1673384766961,0.42070535,17467.0,17466.0,2.07611395]
[1673384767211,0.81275058,17467.0,17466.0,1.40817921]
[1673384767469,0.67675058,17467.0,17466.0,1.40717921]
[1673384767734,0.79675058,17467.0,17466.0,1.40917921]
[1673384768532,0.96743009,17467.0,17466.0,1.40917921]
[1673384768783,0.96753438,17467.0,17466.0,1.40917921]
[1673384769282,0.96758439,17467.0,17466.0,1.60373861]
[1673384770561,1.54009239,17467.0,17466.0,1.60373861]
[1673384771039,1.71091952,17467.0,17466.0,1.60373861]
[1673384771288,1.36953466,17467.0,17466.0,1.40917921]
[1673384771779,0.12,17467.0,17466.0,3.09507625]
[1673384772030,0.12,17467.0,17466.0,2.57021592]
[1673384772290,0.12010429,17467.0,17466.0,1.48006261]
[1673384772546,0.29084064,17467.0,17466.0,1.31676261]
[1673384772801,0.12,17467.0,17466.0,1.31676261]
[1673384773052,0.12,17467.0,17466.0,1.78211152]
[1673384773297,0.12,17467.0,17466.0,2.46910225]
[1673384773785,0.13278541,17467.0,17466.0,2.46910225]
[1673384774015,0.13278541,17467.0,17466.0,1.94611152]
[1673384774267,0.1328897,17467.0,17466.0,1.94611152]
[1673384774514,0.1328897,17467.0,17466.0,1.68076261]
[1673384774769,0.13278541,17467.0,17466.0,1.68076261]
[1673384775020,0.13278541,17467.0,17466.0,1.6806595]
[1673384775503,0.1328897,17467.0,17466.0,1.6806595]
[1673384775764,0.13278541,17467.0,17466.0,1.6806595]
[1673384775981,0.13278541,17467.0,17466.0,1.92234312]
[1673384777495,0.30369649,17467.0,17466.0,1.92234312]
[1673384777746,0.3035922,17467.0,17466.0,1.92234312]
[1673384777989,0.13278541,17467.0,17466.0,1.92234312]
[1673384778243,0.13278541,17467.0,17466.0,1.4806595]
[1673384778505,0.3035922,17467.0,17466.0,1.4806595]
[1673384778757,0.30361122,17467.0,17466.0,1.4806595]
[1673384779012,0.13278541,17467.0,17466.0,1.4806595]
[1673384779527,0.3036119,17467.0,17466.0,1.4806595]
[1673384780544,0.30371619,17467.0,17466.0,1.4806595]
[1673384780796,0.3036119,17467.0,17466.0,1.4806595]
[1673384782520,0.13278541,17467.0,17466.0,1.4806595]
[1673384782775,0.3036119,17467.0,17466.0,1.4806595]
[1673384783537,0.13278541,17467.0,17466.0,1.4806595]
[1673384783787,0.3036119,17467.0,17466.0,1.4806595]
[1673384785048,0.30371619,17467.0,17466.0,1.4806595]
[1673384785577,0.13278541,17467.0,17466.0,1.4806595]
[1673384785796,0.13278541,17467.0,17466.0,1.3166595]
[1673384786732,0.13278541,17467.0,17466.0,1.52195929]
[1673384787002,0.13278541,17467.0,17466.0,1.3166595]
[1673384790246,0.13278541,17467.0,17466.0,1.5166595]
[1673384793266,0.13278541,17467.0,17466.0,2.03919013]
[1673384793988,0.13278541,17467.0,17466.0,1.5166595]
[1673384794240,0.13278541,17467.0,17466.0,1.74693252]
[1673384794724,0.13278541,17467.0,17466.0,1.5166595]
[1673384800993,0.13278541,17467.0,17466.0,2.03888485]
[1673384801510,0.13278541,17467.0,17466.0,1.5166595]
[1673384810541,0.30371619,17467.0,17466.0,1.5166595]
[1673384810789,0.3036119,17467.0,17466.0,1.5166595]
[1673384811292,0.13278541,17467.0,17466.0,1.5166595]
[1673384812328,0.13278541,17467.0,17466.0,1.3528595]
[1673384814954,0.3036119,17467.0,17466.0,1.3528595]
[1673384815194,0.3036119,17467.0,17466.0,1.1528595]
[1673384816215,0.55981143,17467.0,17466.0,1.1528595]
[1673384817411,0.3036119,17467.0,17466.0,1.34172618]
[1673384818410,0.55981143,17467.0,17466.0,1.34172618]
[1673384818665,0.55981143,17467.0,17466.0,1.1528595]
[1673384819152,0.3036119,17467.0,17466.0,1.1528595]
[1673384819397,0.55981143,17467.0,17466.0,1.1528595]
[1673384820407,0.55981143,17467.0,17466.0,0.7947125]
[1673384821154,0.55981143,17467.0,17466.0,1.1528595]
[1673384821396,0.55981143,17467.0,17466.0,1.39900389]
[1673384821397,0.3036119,17467.0,17466.0,1.39900389]
[1673384822659,0.55981143,17467.0,17466.0,1.39900389]
[1673384826021,0.55981143,17467.0,17466.0,1.39580389]
[1673384826295,0.43981143,17467.0,17466.0,1.39380389]
[1673384826536,0.2386119,17467.0,17466.0,1.39780389]
[1673384826766,0.49481143,17467.0,17466.0,1.39780389]
[1673384827025,0.2386119,17467.0,17466.0,1.39780389]
[1673384827287,0.49481143,17467.0,17466.0,1.39780389]
[1673384834180,0.83600903,17467.0,17466.0,1.1516595]
[1673384834425,0.83590474,17467.0,17466.0,0.7935125]
[1673384836173,0.6664884,17467.0,17466.0,0.7935125]
[1673384836678,0.6664884,17467.0,17466.0,1.1516595]
[1673384836935,0.6664884,17467.0,17466.0,0.98451125]
[1673384837186,0.49664237,17467.0,17466.0,1.21079372]
[1673384837941,0.6664884,17467.0,17466.0,1.21079372]
[1673384838193,0.49665112,17467.0,17466.0,1.21079372]
[1673384838460,0.6664884,17467.0,17466.0,1.21079372]
[1673384838716,0.49664756,17467.0,17466.0,1.21079372]
[1673384838991,0.83803242,17467.0,17466.0,1.21079372]
[1673384839237,0.49664756,17467.0,17466.0,1.21079372]
[1673384840263,0.6664884,17467.0,17466.0,1.21059372]
[1673384841463,0.6664884,17467.0,17466.0,0.62616425]
[1673384842219,0.6664884,17467.0,17466.0,0.98431125]
[1673384847049,0.49664276,17467.0,17466.0,0.98431125]
[1673384848861,0.49664276,17467.0,17466.0,0.98442305]
[1673384850853,0.49664276,17467.0,17466.0,0.97828345]
[1673384851382,0.49664276,17467.0,17466.0,0.97817165]
[1673384851627,0.49664276,17467.0,17466.0,0.97828345]
[1673384852143,0.49664276,17467.0,17466.0,0.97817165]
[1673384852403,0.66659269,17467.0,17466.0,0.97817165]
[1673384852949,0.6664884,17467.0,17466.0,0.97817165]
[1673384854454,0.6663984,17467.0,17466.0,0.97817165]
[1673384855295,0.49453417,17467.0,17466.0,0.362147]
[1673384855548,0.49453417,17467.0,17466.0,0.004]
[1673384856328,0.0677997,17467.0,17466.0,0.004]
[1673384856592,0.9403077,17467.0,17466.0,0.004]
[1673384857223,1.7128157,17467.0,17466.0,0.004]
[1673384857516,1.8768157,17467.0,17466.0,0.004]
[1673384857766,2.10550302,17467.0,17466.0,0.004]
[1673384858017,1.80550302,17467.0,17466.0,0.004]
[1673384858253,1.80550576,17467.0,17466.0,0.004]
[1673384858547,1.80549661,17467.0,17466.0,0.004]
[1673384859023,1.23298861,17467.0,17466.0,0.004]
[1673384860549,1.80549661,17467.0,17466.0,0.004]
[1673384862975,1.23298861,17467.0,17466.0,0.004]
[1673384864544,1.53298861,17467.0,17466.0,0.004]
[1673384866274,2.10549661,17467.0,17466.0,0.004]
[1673384866525,1.6768157,17467.0,17466.0,0.004]
[1673384866780,1.8768157,17467.0,17466.0,0.004]
[1673384870304,1.6768157,17467.0,17466.0,0.004]
[1673384870563,2.10491638,17467.0,17466.0,0.004]
[1673384876231,1.80491638,17467.0,17466.0,0.004]
[1673384877513,2.00491638,17467.0,17466.0,0.00389331]
[1673384877770,2.30491638,17467.0,17466.0,0.00389331]
[1673384886185,1.8768157,17467.0,17466.0,0.00389331]
[1673384889905,1.8768157,17467.0,17466.0,0.00189331]
[1673384892976,2.38874957,17467.0,17466.0,0.00189331]
[1673384897478,2.38864528,17467.0,17466.0,0.00189331]
[1673384897729,1.00420341,17467.0,17466.0,0.00189331]
[1673384897977,1.30420341,17467.0,17466.0,0.05997085]
[1673384898227,0.80420341,17467.0,17466.0,0.05997085]
[1673384898712,1.4325079,17467.0,17466.0,0.05997085]
[1673384898956,1.00420341,17467.0,17466.0,0.05997085]
[1673384899213,0.80420341,17467.0,17466.0,0.05997085]
[1673384899470,0.80410341,17467.0,17466.0,0.05997085]
[1673384899691,1.00410341,17467.0,17466.0,0.05997085]
[1673384900705,1.87661141,17467.0,17466.0,0.00189331]
[1673384900954,1.5767157,17467.0,17466.0,0.00189331]
[1673384901451,1.0042077,17467.0,17466.0,0.00189331]
[1673384902690,1.5767157,17467.0,17466.0,0.00189331]
[1673384903417,1.8767157,17467.0,17466.0,0.00189331]
[1673384906385,2.38864957,17467.0,17466.0,0.00189331]
[1673384909034,1.8767157,17467.0,17466.0,0.00189331]
[1673384909531,1.5767157,17467.0,17466.0,0.00189331]
[1673384909782,1.8767157,17467.0,17466.0,0.00189331]
[1673384911295,2.38864957,17467.0,17466.0,0.00189331]
[1673384911802,2.42743357,17467.0,17466.0,0.00189331]
[1673384912531,2.38864957,17467.0,17466.0,0.00189331]
[1673384915848,1.8767157,17467.0,17466.0,0.00189331]
[1673384916361,1.5767157,17467.0,17466.0,0.00189331]
[1673384916870,2.38864957,17467.0,17466.0,0.00189331]
[1673384920180,2.38864957,17467.0,17466.0,0.00349331]
[1673384920460,2.38864957,17467.0,17466.0,0.00709331]
[1673384920683,2.22464957,17467.0,17466.0,0.00709331]
[1673384922559,2.22457014,17467.0,17466.0,0.00709331]
[1673384924611,1.72446585,17467.0,17466.0,0.00709331]
[1673384924860,1.21253198,17467.0,17466.0,0.06069293]
[1673384927317,1.21263627,17467.0,17466.0,0.06069293]
[1673384927572,1.21253198,17467.0,17466.0,0.06069293]
[1673384928379,1.21263627,17467.0,17466.0,0.06069293]
[1673384929112,1.21253198,17467.0,17466.0,0.06069293]
[1673384929368,1.21263627,17467.0,17466.0,0.06069293]
[1673384930839,1.37503198,17467.0,17466.0,0.06069293]
[1673384932544,1.21253198,17467.0,17466.0,0.06069293]
[1673384932799,1.21263627,17467.0,17466.0,0.06069293]
[1673384933057,1.21253198,17467.0,17466.0,0.06069293]
[1673384933354,0.64002398,17467.0,17466.0,0.85449614]
[1673384933608,0.66739643,17467.0,17466.0,1.13896525]
[1673384934152,0.49602957,17467.0,17466.0,1.6602435]
[1673384934461,0.23893795,17467.0,17466.0,1.6602435]
[1673384934665,0.23893795,17467.0,17466.0,1.8230435]
[1673384934912,0.06751598,17467.0,17466.0,2.0230435]
[1673384935161,0.06751598,17467.0,17466.0,2.5955835]
[1673384935416,0.06751598,17467.0,17466.0,2.03945818]
[1673384935696,0.06751598,17467.0,17466.0,2.77599818]
[1673384935952,0.06751598,17467.0,17466.0,5.19063189]
[1673384936209,0.17142197,17469.0,17467.0,0.2]
[1673384936465,0.17154197,17470.0,17468.0,1.22371269]
[1673384936721,0.42851359,17470.0,17469.0,0.521347]
[1673384937554,0.42851359,17470.0,17469.0,1.04219506]
[1673384938061,0.42851359,17470.0,17469.0,1.56021337]
[1673384938062,0.19842197,17470.0,17469.0,1.56021337]
[1673384938562,0.19842197,17470.0,17469.0,1.04219506]
[1673384938566,0.027,17470.0,17469.0,1.04219506]
[1673384938813,0.42851359,17471.0,17469.0,1.75452325]
[1673384939068,0.42851359,17471.0,17469.0,1.47385414]
[1673384939069,0.027,17470.0,17469.0,1.47385414]
[1673384939325,0.027,17470.0,17469.0,2.69276325]
[1673384939584,0.027,17470.0,17469.0,2.17191519]
[1673384939805,0.027,17470.0,17469.0,2.85517417]
[1673384941135,0.42851359,17472.0,17470.0,0.2]
[1673384941396,0.42851359,17472.0,17471.0,0.542147]
[1673384942157,0.17142197,17472.0,17471.0,0.542147]
[1673384942671,0.52951359,17472.0,17471.0,0.550147]
[1673384942928,0.27242197,17472.0,17471.0,1.26584918]
[1673384943179,0.101,17472.0,17471.0,1.42934918]
[1673384943433,0.4362016,17473.0,17471.0,1.42134918]
[1673384943701,0.1,17472.0,17471.0,1.26130826]
[1673384943961,0.1,17472.0,17471.0,1.42184918]
[1673384944212,0.127,17472.0,17471.0,1.9421995]
[1673384944464,0.127,17472.0,17471.0,1.94219951]
[1673384945231,0.027,17472.0,17471.0,1.94219951]
[1673384945489,0.00768801,17473.0,17471.0,1.93919951]
[1673384945742,0.00768801,17473.0,17472.0,0.87736695]
[1673384946009,0.00768801,17473.0,17472.0,1.07736695]
[1673384946533,0.10768801,17473.0,17472.0,1.07736695]
[1673384946786,0.00768801,17473.0,17472.0,1.07736695]
[1673384947040,0.10768801,17473.0,17472.0,1.08536695]
[1673384947319,0.10768801,17473.0,17472.0,0.88536695]
[1673384948077,0.10768801,17473.0,17472.0,0.52721995]
[1673384949352,0.10768801,17473.0,17472.0,1.17718301]
[1673384950655,0.10768801,17473.0,17472.0,1.18078301]
[1673384951198,0.10768801,17473.0,17472.0,1.53393001]
[1673384951703,0.10768801,17473.0,17472.0,1.17578301]
[1673384954060,0.67999901,17473.0,17472.0,1.17578301]
[1673384954820,0.92999901,17473.0,17472.0,1.17578301]
[1673384956819,1.50231001,17473.0,17472.0,1.17578301]
[1673384957631,1.50231001,17473.0,17472.0,0.98686306]
[1673384960330,0.92999901,17473.0,17472.0,0.98686306]
[1673384960869,0.92999901,17473.0,17472.0,0.82406306]
[1673384962322,0.42999901,17473.0,17472.0,0.82406306]
[1673384963855,0.42999901,17473.0,17472.0,0.82566306]
[1673384964122,0.42999901,17473.0,17472.0,0.9819644]
[1673384967132,8.0180356,17472.0,17471.0,1.17366079]
[1673384967386,8.0180356,17472.0,17471.0,0.82031046]
[1673384968358,8.2680356,17472.0,17471.0,0.84231046]
[1673384970154,8.26813989,17472.0,17471.0,0.186]
[1673384970408,9.53729264,17472.0,17471.0,0.186]
[1673384970662,9.53990238,17472.0,17471.0,0.022]
[1673384970919,10.408122,17472.0,17471.0,0.022]
[1673384971434,10.54070486,17472.0,17471.0,0.022]
[1673384971683,10.54070486,17472.0,17469.0,1.36979992]
[1673384971937,0.1712243,17471.0,17469.0,1.0036957]
[1673384972410,1.00070792,17471.0,17469.0,1.0036957]
[1673384972667,1.34349675,17471.0,17469.0,0.85037571]
[1673384972922,0.7436163,17471.0,17470.0,0.51519674]
[1673384973424,0.9936163,17471.0,17470.0,0.51519674]
[1673384973681,1.25070792,17471.0,17470.0,0.51519674]
[1673384974210,1.25070792,17471.0,17470.0,0.53719674]
[1673384974453,1.42227245,17471.0,17470.0,0.53719674]
[1673384975537,1.62227245,17471.0,17470.0,0.53719674]
[1673384976067,1.85073596,17471.0,17470.0,0.53719674]
[1673384976326,1.42227245,17471.0,17470.0,0.60731641]
[1673384977024,1.42227245,17471.0,17470.0,0.53719674]
[1673384979546,7.48083886,17470.0,17469.0,1.40026851]
[1673384979797,7.65234137,17470.0,17469.0,0.87744994]
[1673384980809,7.90234137,17470.0,17469.0,0.87744994]
[1673384981289,7.90434137,17470.0,17469.0,0.96044994]
[1673384981539,7.90434137,17470.0,17469.0,1.11706984]
[1673384982048,7.73283886,17470.0,17469.0,1.64232027]
[1673384983777,7.73283886,17470.0,17469.0,2.37726227]
[1673384983998,7.73283886,17470.0,17469.0,2.54872638]
[1673384984252,7.73283886,17470.0,17469.0,2.37726227]
[1673384984569,7.73283886,17470.0,17469.0,2.54904481]
[1673384985075,7.73283886,17470.0,17469.0,3.12148681]
[1673384987619,7.73283886,17470.0,17469.0,4.26683432]
[1673384987871,6.83094252,17470.0,17469.0,5.39067309]
[1673384988127,6.83094252,17470.0,17469.0,6.39569072]
[1673384988649,6.83094252,17470.0,17469.0,6.40043835]
[1673384989148,6.83094252,17470.0,17469.0,6.31743835]
[1673384989454,6.82894252,17470.0,17469.0,6.45743835]
[1673384989697,6.82894252,17470.0,17469.0,6.31743835]
[1673384989952,6.82894252,17470.0,17469.0,6.45643835]